Workbook

Sheet Precept Payment Form
A2: TO: MID DEVON DISTRICT COUNCIL | F2: FROM: | G2: Keyth Richardson
A3: F.A.O. Mrs Lynette Wright | F3: Clerk to Coldridge Parish Council
A4: Phoenix House, Phoenix Lane, Tiverton, Devon EX16 6PP | F4: Church Cottage Coldridge EX17 6AX
A7: REQUEST FOR PAYMENT OF PRECEPT 2017/18
A8: Local Government Finance Act 1992
A10: You are hereby directed to pay: | F10: ='Calculation Sheet'!A9 -> Coldridge
A11: ( Parish/Town Council)
A13: Bank Name:- | B13: Nat West
A15: Bank Address:- | B15: Bridge Street
B16: Hatherleigh
B17: Okehampton
B18: EX20 3HS
A19: Bank Account No :- | B19: 09201793
A20: Sort code :- | B20: 53-50-28
A22: The gross precept sum of | B22: 4500 | E22: from the General Fund of the Authority
A23: to meet expenses payable by the Parish/Town Council.
A24: NB. Please enter your gross precept amount, not the precept amount less your share of the CTR grant.
A26: Authorised at a meeting of the Parish/Town Council held on | H26: Date: | I26: 18/11/ | J26: /2016
A28: Signed: | H28: Date: | I28: 21 | J28: 2016-11-01
B29: (Responsible Officer)
A32: *NB. If you do not require a precept please complete as a nil return.
A34: DEVON ASSOCIATION OF LOCAL COUNCILS SUBSCRIPTION DEDUCTION
A36: In making a precept payment please deduct and pay to the D.A.L.C all sums notified and
A37: Authorised at a meeting of the Parish/Town Council held on / /
A39: Signed: | H39: Date: | I39: / / | J39: /
B40: (Responsible Officer)
B43: Office Use:
B45: GL Code | E45: Net Amount £ p | G45: Vat Code
B46: IE250 4641 | H46: 9
B47: Line Description
B48: Parish Precept 2017/18
B49: GL Code | E49: Net Amount £ p | G49: Vat Code
B50: CR496 8552 | H50: 9
B51: Line Description
B52: Parish DALC 2017-18
B54: Department Certification
C55: Serv/Good Rec'd | E55: Price/Extn Check | F55: Authorised Sign. | G55: Pay Officer Check

Sheet Calculation Sheet
A1: 2017/18 Town/Parish Precept Charges
A3: Please select your Town/Parish in the dropdown menu below:
A4: (Please use the arrow keys and then click on the name of your Town/Parish)
C8: Grant Reduction: | E8: -0.35
A9: Coldridge | C9: Current Year | E9: Next year
C10: 2016-17 | E10: 2017/18
A12: Precept Requested (enter amount to calculate) | C12: =VLOOKUP(A9,'Parish Precepts Current'!$C$10:$P$71,5,FALSE) -> 4000 | E12: 4500
A13: Share of Council Tax Reduction Grant (1) | C13: =-ROUND(VLOOKUP(A9,'Parish Precepts Current'!$C$10:$P$71,6,FALSE),2) -> -123.23 | E13: =-ROUND(VLOOKUP(A9,'Parish Precepts Future'!$C$10:$L$71,6,FALSE)*(100%+H8),2) -> -120.17
A14: Net Precept to be raised by Council Tax | B14: A | C14: =C12+C13 -> 3876.77 | E14: =E12+E13 -> 4379.83
A16: Number of Band D at 98% collection | B16: B | C16: =VLOOKUP(A9,'Parish Precepts Current'!$C$10:$P$71,9,FALSE) -> 157.6275556 | E16: =VLOOKUP(A9,'Parish Precepts Future'!$C$10:$L$71,9,FALSE) -> 157.0580667
A18: Band D Parish Charge | B18: A divided by B | C18: =ROUND(C14/C16,2) -> 24.59 | E18: =ROUND(E14/E16,2) -> 27.89
E20: =(E18/C18)-1 -> 0.1342008947 | F20: Rise
A22: Note
A23: An increase of £1,000 would increase your annual precept by: | E23: =ROUND(1000/E16,2) -> 6.37
B25: which is per week: | E25: =ROUND(E23/52,2) -> 0.12
A28: (1) The Council Tax Reduction Grant is the agreed figure for your Town/Parish.
A29: Please note that the reduction in grant may not calculate at 15%.
A30: This is due to either an increase or decrease in the number of Band D properties in
A31: your Town/Parish that are in receipt of Council Tax Support.

Sheet Parish Precepts Current (hidden)
A1: PARISH PRECEPTS 2016/17
D5: Amount | E5: Share of | F5: Amount | G5: Amount | H5: Share of | I5: Amount | J5: Band D | K5: Band D | L5: Band D
A6: Parish | C6: Parish | D6: Required | E6: DCLG Grant | F6: Required | G6: Required | H6: DCLG Grant | I6: Required | J6: Equivalent | K6: Equivalent | L6: Parish
A7: Code | C7: Name | D7: (£) 13/14 | E7: of £98,000 | F7: From C/Tax | G7: (£) 16/17 | H7: of £55,250 | I7: From C/Tax | J7: Properties | K7: Properties | L7: Charge (£)
D8: (IE2504641) | E8: 13/14 | F8: 13/14 | G8: (IE2504641) | H8: 16/17 | I8: 16/17 | J8: 100% | K8: 98%
A10: 1 | C10: Bampton | D10: 36192 | E10: 2502.2 | F10: 33689.8 | G10: 40315.22 | H10: 1499.224187 | I10: 38815.99581 | J10: 758.3 | K10: 743.134 | L10: 52.23
A11: 2 | C11: Bickleigh | D11: 3000 | E11: 302.64 | F11: 2697.36 | G11: 3500 | H11: 137.3998989 | I11: 3362.600101 | J11: 110.6333333 | K11: 108.4206667 | L11: 31.01
A12: 3 | C12: Bow | D12: 8500 | E12: 1886.11 | F12: 6613.89 | G12: 9180 | H12: 967.3494335 | I12: 8212.650567 | J12: 441.7166667 | K12: 432.8823333 | L12: 18.97
A13: 4 | C13: Bradninch | D13: 25000 | E13: 3191.93 | F13: 21808.07 | G13: 30000 | H13: 1792.996415 | I13: 28207.00358 | J13: 737.8611111 | K13: 723.1038889 | L13: 39.01
A14: 5 | C14: Brushford | D14: 0 | E14: 0 | F14: 0 | G14: 0 | I14: 0 | J14: 25.09444444 | K14: 24.59255556 | L14: 0
A15: 6 | C15: Burlescombe | D15: 9000 | E15: 942.38 | F15: 8057.62 | G15: 9000 | H15: 431.7598494 | I15: 8568.240151 | J15: 321.6944444 | K15: 315.2605556 | L15: 27.18
A16: 7 | C16: Butterleigh | D16: 100 | E16: 62.15 | F16: 37.85 | G16: 121 | H16: 35.11202073 | I16: 85.88797927 | J16: 52.51111111 | K16: 51.46088889 | L16: 1.67
A17: 8 | C17: Cadbury | D17: 500 | E17: 90.86 | F17: 409.14 | G17: 510 | H17: 40.91439186 | I17: 469.0856081 | J17: 65.22777778 | K17: 63.92322222 | L17: 7.34
A18: 9 | C18: Cadeleigh | D18: 2200 | E18: 19.59 | F18: 2180.41 | G18: 1750 | H18: 8.725796318 | I18: 1741.274204 | J18: 89.32222222 | K18: 87.53577778 | L18: 19.89
A19: 10 | C19: Chawleigh | D19: 12000 | E19: 782.28 | F19: 11217.72 | G19: 11950 | H19: 435.0300228 | I19: 11514.96998 | J19: 243.0111111 | K19: 238.1508889 | L19: 48.35
A20: 11 | C20: Cheriton Bishop | D20: 7450 | E20: 805.24 | F20: 6644.76 | G20: 9500 | H20: 371.9196764 | I20: 9128.080324 | J20: 279.8388889 | K20: 274.2421111 | L20: 33.28
A21: 12 | C21: Cheriton Fitzpaine | D21: 10800 | E21: 760.32 | F21: 10039.68 | G21: 19000 | H21: 375.0633281 | I21: 18624.93667 | J21: 332.3222222 | K21: 325.6757778 | L21: 57.19
A22: 13 | C22: Clannaborough | D22: 0 | E22: 0 | F22: 0 | G22: 0 | I22: 0 | J22: 28.14444444 | K22: 27.58155556 | L22: 0
A23: 14 | C23: Clayhanger (B Gate) | D23: 500 | E23: 56.75 | F23: 443.25 | G23: 766 | H23: 3.223253235 | I23: 762.7767468 | J23: 58.76111111 | K23: 57.58588889 | L23: 13.25
A24: 15 | C24: Clayhidon | D24: 6750 | E24: 278.32 | F24: 6471.68 | G24: 8000 | H24: 194.5102941 | I24: 7805.489706 | J24: 224.7 | K24: 220.206 | L24: 35.45
A25: 16 | B25: 16 | C25: Coldridge | D25: 3300 | E25: 389.11 | F25: 2910.89 | G25: 4000 | H25: 123.2272941 | I25: 3876.772706 | J25: 160.8444444 | K25: 157.6275556 | L25: 24.59
A26: 17 | C26: Colebrooke | D26: 6000 | E26: 355 | F26: 5645 | G26: 9000 | H26: 176.2744836 | I26: 8823.725516 | J26: 176.0555556 | K26: 172.5344444 | L26: 51.14
A27: 18 | C27: Copplestone | D27: 6600 | E27: 1575.02 | F27: 5024.98 | G27: 11000 | H27: 889.3602388 | I27: 10110.63976 | J27: 426.8 | K27: 418.264 | L27: 24.17
A28: 19 | C28: Crediton | D28: 136800 | E28: 10890.05 | F28: 125909.95 | G28: 199470 | H28: 6236.141226 | I28: 193233.8588 | J28: 2656.205556 | K28: 2603.081444 | L28: 74.23
A29: 20 | C29: Crediton Hamlets | D29: 4869 | E29: 1121.06 | F29: 3747.94 | G29: 6500 | H29: 579.4764911 | I29: 5920.523509 | J29: 528.3555556 | K29: 517.7884444 | L29: 11.43
A30: 21 | C30: Cruwys Morchard | D30: 2450 | E30: 246.57 | F30: 2203.43 | G30: 3500 | H30: 131.3522139 | I30: 3368.647786 | J30: 204.7666667 | K30: 200.6713333 | L30: 16.79
A31: 22 | C31: Cullompton | D31: 198000 | E31: 11014.69 | F31: 186985.31 | G31: 304573 | H31: 6395.784406 | I31: 298177.2156 | J31: 3100.061111 | K31: 3038.059889 | L31: 98.15
A32: 23 | C32: Culmstock | D32: 11746 | E32: 738.7 | F32: 11007.3 | G32: 19782 | H32: 479.7962084 | I32: 19302.20379 | J32: 352.2444444 | K32: 345.1995556 | L32: 55.92
A33: 24 | C33: Down St Mary | D33: 2500 | E33: 266.5 | F33: 2233.5 | G33: 3000 | H33: 105.2560538 | I33: 2894.743946 | J33: 153.7555556 | K33: 150.6804444 | L33: 19.21
A34: 25 | C34: Eggesford | D34: 0 | E34: 0 | F34: 0 | G34: 0 | I34: 0 | J34: 30.58888889 | K34: 29.97711111 | L34: 0
A35: 26 | C35: Halberton | D35: 11580 | E35: 1403.77 | F35: 10176.23 | G35: 12530 | H35: 835.2321224 | I35: 11694.76788 | J35: 613.6333333 | K35: 601.3606667 | L35: 19.45
A36: 27 | C36: Hemyock | D36: 56350 | E36: 1570.29 | F36: 54779.71 | G36: 74513 | H36: 1030.752556 | I36: 73482.24744 | J36: 839.6944444 | K36: 822.9005556 | L36: 89.3
A37: 28 | C37: Hittisleigh | D37: 1600 | E37: 144.23 | F37: 1455.77 | G37: 1700 | H37: 50.07847142 | I37: 1649.921529 | J37: 60.58888889 | K37: 59.37711111 | L37: 27.79
A38: 29 | C38: Hockworthy (B Gate) | D38: 500 | E38: 59.45 | F38: 440.55 | G38: 767 | H38: 35.0622528 | I38: 731.9377472 | J38: 83.01111111 | K38: 81.35088889 | L38: 9
A39: 30 | C39: Holcombe Rogus | D39: 5500 | E39: 400.26 | F39: 5099.74 | G39: 6300 | H39: 197.4916237 | I39: 6102.508376 | J39: 216.7388889 | K39: 212.4041111 | L39: 28.73
A40: 31 | C40: Huntsham (B Gate) | D40: 500 | E40: 96.6 | F40: 403.4 | G40: 767 | H40: 53.54229226 | I40: 713.4577077 | J40: 65.40555556 | K40: 64.09744444 | L40: 11.13
A41: 32 | C41: Kennerleigh | D41: 0 | E41: 0 | F41: 0 | G41: 100 | H41: 52.27002326 | I41: 47.72997674 | J41: 37.73888889 | K41: 36.98411111 | L41: 1.29
A42: 33 | C42: Kentisbeare | D42: 14716 | E42: 460.38 | F42: 14255.62 | G42: 20056 | H42: 343.2948444 | I42: 19712.70516 | J42: 379.3888889 | K42: 371.8011111 | L42: 53.02
A43: 34 | C43: Lapford | D43: 7140 | E43: 1925.29 | F43: 5214.71 | G43: 10250 | H43: 1143.661345 | I43: 9106.338655 | J43: 376.0111111 | K43: 368.4908889 | L43: 24.71
A44: 35 | C44: Loxbeare | D44: 0 | E44: 0 | F44: 0 | G44: 0 | I44: 0 | J44: 76.28888889 | K44: 74.76311111 | L44: 0
A45: 36 | C45: Morchard Bishop | D45: 7000 | E45: 1028.17 | F45: 5971.83 | G45: 7220 | H45: 627.1675935 | I45: 6592.832407 | J45: 414.4777778 | K45: 406.1882222 | L45: 16.23
A46: 37 | C46: Morebath | D46: 6155 | E46: 293.86 | F46: 5861.14 | G46: 6155 | H46: 147.1853317 | I46: 6007.814668 | J46: 149.4 | K46: 146.412 | L46: 41.03
A47: 38 | C47: Newton St Cyres | D47: 8853 | E47: 1028.17 | F47: 7824.83 | G47: 12768 | H47: 603.7218808 | I47: 12164.27812 | J47: 359.8388889 | K47: 352.6421111 | L47: 34.49
A48: 39 | C48: Nymet Rowland | D48: 600 | E48: 109.1 | F48: 490.9 | G48: 600 | H48: 67.68519897 | I48: 532.314801 | J48: 49.92777778 | K48: 48.92922222 | L48: 10.88
A49: 40 | C49: Oakford | D49: 3095 | E49: 448.22 | F49: 2646.78 | G49: 3580 | H49: 215.8268344 | I49: 3364.173166 | J49: 176.6055556 | K49: 173.0734444 | L49: 19.44
A50: 41 | C50: Poughill | D50: 2000 | E50: 198.27 | F50: 1801.73 | G50: 2000 | H50: 74.37457837 | I50: 1925.625422 | J50: 81.12777778 | K50: 79.50522222 | L50: 24.22
A51: 42 | C51: Puddington | D51: 850 | E51: 202.32 | F51: 647.68 | G51: 1000 | H51: 96.95864138 | I51: 903.0413586 | J51: 88.46111111 | K51: 86.69188889 | L51: 10.42
A52: 43 | C52: Sampford Peverell | D52: 7900 | E52: 840.03 | F52: 7059.97 | G52: 9700 | H52: 428.1966283 | I52: 9271.803372 | J52: 500.6166667 | K52: 490.6043333 | L52: 18.9
A53: 44 | C53: Sandford | D53: 10656 | E53: 1265.29 | F53: 9390.71 | G53: 11993 | H53: 725.9428321 | I53: 11267.05717 | J53: 495.1166667 | K53: 485.2143333 | L53: 23.22
A54: 45 | C54: Shobrooke | D54: 5000 | E54: 774.17 | F54: 4225.83 | G54: 5000 | H54: 478.4810874 | I54: 4521.518913 | J54: 201.3722222 | K54: 197.3447778 | L54: 22.91
A55: 46 | C55: Silverton | D55: 32200 | E55: 2067.83 | F55: 30132.17 | G55: 25000 | H55: 1102.131295 | I55: 23897.8687 | J55: 774.4222222 | K55: 758.9337778 | L55: 31.49
A56: 47 | C56: Stockleigh English | D56: 0 | E56: 0 | F56: 0 | G56: 0 | I56: 0 | J56: 29.57222222 | K56: 28.98077778 | L56: 0
A57: 48 | C57: Stockleigh Pomeroy | D57: 0 | E57: 0 | F57: 0 | G57: 0 | I57: 0 | J57: 60.17222222 | K57: 58.96877778 | L57: 0
A58: 49 | C58: Stoodleigh | D58: 4000 | E58: 244.88 | F58: 3755.12 | G58: 4000 | H58: 108.0715355 | I58: 3891.928465 | J58: 147.1277778 | K58: 144.1852222 | L58: 26.99
A59: 50 | C59: Templeton | D59: 1262 | E59: 138.82 | F59: 1123.18 | G59: 2004.8 | H59: 15.31319892 | I59: 1989.486801 | J59: 64.93888889 | K59: 63.64011111 | L59: 31.26
A60: 51 | C60: Thelbridge | D60: 800 | E60: 212.46 | F60: 587.54 | G60: 1500 | H60: 130.0202776 | I60: 1369.979722 | J60: 133.6277778 | K60: 130.9552222 | L60: 10.46
A61: 52 | C61: Thorverton | D61: 13500 | E61: 846.79 | F61: 12653.21 | G61: 14045.4 | H61: 481.0044706 | I61: 13564.39553 | J61: 374.8277778 | K61: 367.3312222 | L61: 36.93
A62: 53 | C62: Tiverton | D62: 236442 | E62: 34636.02 | F62: 201805.98 | G62: 285699.16 | H62: 19542.16412 | I62: 266156.9959 | J62: 6741.281111 | K62: 6606.445489 | L62: 40.29
A63: 54 | C63: Uffculme | D63: 70000 | E63: 4606.85 | F63: 65393.15 | G63: 75000 | H63: 2479.929733 | I63: 72520.07027 | J63: 1045.944444 | K63: 1025.025556 | L63: 70.75
A64: 55 | C64: Uplowman | D64: 2500 | E64: 170.57 | F64: 2329.43 | G64: 2900 | H64: 87.58084449 | I64: 2812.419156 | J64: 150.0833333 | K64: 147.0816667 | L64: 19.12
A65: 56 | C65: Upton Hellions | D65: 0 | E65: 0 | F65: 0 | G65: 0 | I65: 0 | J65: 33.01666667 | K65: 32.35633333 | L65: 0
A66: 57 | C66: Washfield | D66: 1650 | E66: 236.78 | F66: 1413.22 | G66: 1580.3 | H66: 144.521188 | I66: 1435.778812 | J66: 161.8888889 | K66: 158.6511111 | L66: 9.05
A67: 58 | C67: Washford Pyne | D67: 550 | E67: 76 | F67: 474 | G67: 500 | H67: 27.31472855 | I67: 472.6852714 | J67: 40.77222222 | K67: 39.95677778 | L67: 11.83
A68: 59 | C68: Wembworthy | D68: 3000 | E68: 249.27 | F68: 2750.73 | G68: 3000 | H68: 111.6271625 | I68: 2888.372837 | J68: 106.75 | K68: 104.615 | L68: 27.61
A69: 60 | C69: Willand | D69: 32337 | E69: 3439.51 | F69: 28897.49 | G69: 46897 | H69: 2063.289571 | I69: 44833.71043 | J69: 1149.161111 | K69: 1126.177889 | L69: 39.81
A70: 61 | C70: Woolfardisworthy | D70: 500 | E70: 171.25 | F70: 328.75 | G70: 500 | H70: 63.09719246 | I70: 436.9028075 | J70: 70.61666667 | K70: 69.20433333 | L70: 6.31
A71: 62 | C71: Zeal Monachorum | D71: 3250 | E71: 377.63 | F71: 2872.37 | G71: 4000 | H71: 93.90733838 | I71: 3906.092662 | J71: 159.9388889 | K71: 156.7401111 | L71: 24.92
D74: 1046243 | E74: 98000 | F74: 948243 | G74: =SUM(G10:G71) -> 1358042.88 | H74: =SUM(H10:H71) -> 55066.79598 | I74: =SUM(I10:I71) -> 1302976.084 | J74: 28068.40333 | K74: 27507.02527 | L74: 1633.43
H75: =12.24+16.99+17.09+57.78+8.43+39.58+31.1 -> 183.21
H76: =+H74+H75 -> 55250.00598

Sheet Parish Precepts Future (hidden)
A1: PARISH PRECEPTS 2016/17
D5: Amount | E5: Share of | F5: Amount | G5: Amount | H5: Share of | I5: Amount | J5: Band D | K5: Band D | L5: Band D
A6: Parish | C6: Parish | D6: Required | E6: DCLG Grant | F6: Required | G6: Required | H6: DCLG Grant | I6: Required | J6: Equivalent | K6: Equivalent | L6: Parish
A7: Code | C7: Name | D7: (£) 13/14 | E7: of £98,000 | F7: From C/Tax | G7: (£) 15/16 | H7: of £46,960 | I7: From C/Tax | J7: Properties | K7: Properties | L7: Charge (£)
D8: (IE2504641) | E8: 13/14 | F8: 13/14 | G8: (IE2504641) | H8: 17/18 | I8: 17/18 | J8: 100% | K8: 98%
A10: 1 | C10: Bampton | D10: 36192 | E10: 2502.2 | F10: 33689.8 | H10: 1261.837681 | J10: 760.8711111 | K10: 745.6536889
A11: 2 | C11: Bickleigh | D11: 3000 | E11: 302.64 | F11: 2697.36 | H11: 144.7134209 | J11: 111.1066667 | K11: 108.8845333
A12: 3 | C12: Bow | D12: 8500 | E12: 1886.11 | F12: 6613.89 | H12: 826.9055528 | J12: 448.0911111 | K12: 439.1292889
A13: 4 | C13: Bradninch | D13: 25000 | E13: 3191.93 | F13: 21808.07 | H13: 1483.757989 | J13: 740.05 | K13: 725.249
A14: 5 | C14: Brushford | D14: 0 | E14: 0 | F14: 0 | H14: 11.08611706 | J14: 24.13444444 | K14: 23.65175556
A15: 6 | C15: Burlescombe | D15: 9000 | E15: 942.38 | F15: 8057.62 | H15: 399.8920797 | J15: 324.9944444 | K15: 318.4945556
A16: 7 | C16: Butterleigh | D16: 100 | E16: 62.15 | F16: 37.85 | H16: 22.17223412 | J16: 55.51888889 | K16: 54.40851111
A17: 8 | C17: Cadbury | D17: 500 | E17: 90.86 | F17: 409.14 | H17: 9.106453299 | J17: 67.65111111 | K17: 66.29808889
A18: 9 | C18: Cadeleigh | D18: 2200 | E18: 19.59 | F18: 2180.41 | H18: 7.720688667 | J18: 90.27666667 | K18: 88.47113333
A19: 10 | C19: Chawleigh | D19: 12000 | E19: 782.28 | F19: 11217.72 | H19: 348.0248891 | J19: 251.6422222 | K19: 246.6093778
A20: 11 | C20: Cheriton Bishop | D20: 7450 | E20: 805.24 | F20: 6644.76 | H20: 276.9549601 | J20: 283.7877778 | K20: 278.1120222
A21: 12 | C21: Cheriton Fitzpaine | D21: 10800 | E21: 760.32 | F21: 10039.68 | H21: 300.1170261 | J21: 340.6455556 | K21: 333.8326444
A22: 13 | C22: Clannaborough | D22: 0 | E22: 0 | F22: 0 | H22: 16.62917559 | J22: 26.99333333 | K22: 26.45346667
A23: 14 | C23: Clayhanger (B Gate) | D23: 500 | E23: 56.75 | F23: 443.25 | H23: 0 | J23: 59 | K23: 57.82
A24: 15 | C24: Clayhidon | D24: 6750 | E24: 278.32 | F24: 6471.68 | H24: 177.5758393 | J24: 223.5855556 | K24: 219.1138444
A25: 16 | B25: 16 | C25: Coldridge | D25: 3300 | E25: 389.11 | F25: 2910.89 | H25: 120.1655903 | J25: 160.2633333 | K25: 157.0580667
A26: 17 | C26: Colebrooke | D26: 6000 | E26: 355 | F26: 5645 | H26: 115.6123636 | J26: 176.7711111 | K26: 173.2356889
A27: 18 | C27: Copplestone | D27: 6600 | E27: 1575.02 | F27: 5024.98 | H27: 728.7142303 | J27: 443.8011111 | K27: 434.9250889
A28: 19 | C28: Crediton | D28: 136800 | E28: 10890.05 | F28: 125909.95 | H28: 5407.05563 | J28: 2657.62 | K28: 2604.4676
A29: 20 | C29: Crediton Hamlets | D29: 4869 | E29: 1121.06 | F29: 3747.94 | H29: 541.4380385 | J29: 530.2611111 | K29: 519.6558889
A30: 21 | C30: Cruwys Morchard | D30: 2450 | E30: 246.57 | F30: 2203.43 | H30: 100.566919 | J30: 207.6422222 | K30: 203.4893778
A31: 22 | C31: Cullompton | D31: 198000 | E31: 11014.69 | F31: 186985.31 | H31: 5342.716557 | J31: 3151.647778 | K31: 3088.614822
A32: 23 | C32: Culmstock | D32: 11746 | E32: 738.7 | F32: 11007.3 | H32: 387.0242652 | J32: 357.4222222 | K32: 350.2737778
A33: 24 | C33: Down St Mary | D33: 2500 | E33: 266.5 | F33: 2233.5 | H33: 105.3181121 | J33: 156.5133333 | K33: 153.3830667
A34: 25 | C34: Eggesford | D34: 0 | E34: 0 | F34: 0 | H34: 20.19257036 | J34: 31.84111111 | K34: 31.20428889
A35: 26 | C35: Halberton | D35: 11580 | E35: 1403.77 | F35: 10176.23 | H35: 787.9061768 | J35: 615.5055556 | K35: 603.1954444
A36: 27 | C36: Hemyock | D36: 56350 | E36: 1570.29 | F36: 54779.71 | H36: 846.5042241 | J36: 856.8788889 | K36: 839.7413111
A37: 28 | C37: Hittisleigh | D37: 1600 | E37: 144.23 | F37: 1455.77 | H37: 53.64888791 | J37: 60.56777778 | K37: 59.35642222
A38: 29 | C38: Hockworthy (B Gate) | D38: 500 | E38: 59.45 | F38: 440.55 | H38: 25.93359526 | J38: 85.35666667 | K38: 83.64953333
A39: 30 | C39: Holcombe Rogus | D39: 5500 | E39: 400.26 | F39: 5099.74 | H39: 145.9012192 | J39: 219.4633333 | K39: 215.0740667
A40: 31 | C40: Huntsham (B Gate) | D40: 500 | E40: 96.6 | F40: 403.4 | H40: 53.84685429 | J40: 65.11333333 | K40: 63.81106667
A41: 32 | C41: Kennerleigh | D41: 0 | E41: 0 | F41: 0 | H41: 29.49699003 | J41: 39.39888889 | K41: 38.61091111
A42: 33 | C42: Kentisbeare | D42: 14716 | E42: 460.38 | F42: 14255.62 | H42: 284.4776824 | J42: 382.6022222 | K42: 374.9501778
A43: 34 | C43: Lapford | D43: 7140 | E43: 1925.29 | F43: 5214.71 | H43: 969.0454109 | J43: 382.6333333 | K43: 374.9806667
A44: 35 | C44: Loxbeare | D44: 0 | E44: 0 | F44: 0 | H44: 63.94313947 | J44: 77.07555556 | K44: 75.53404444
A45: 36 | C45: Morchard Bishop | D45: 7000 | E45: 1028.17 | F45: 5971.83 | H45: 486.2054196 | J45: 417.9122222 | K45: 409.5539778
A46: 37 | C46: Morebath | D46: 6155 | E46: 293.86 | F46: 5861.14 | H46: 151.4442777 | J46: 147.7666667 | K46: 144.8113333
A47: 38 | C47: Newton St Cyres | D47: 8853 | E47: 1028.17 | F47: 7824.83 | H47: 575.884188 | J47: 360.8544444 | K47: 353.6373556
A48: 39 | C48: Nymet Rowland | D48: 600 | E48: 109.1 | F48: 490.9 | H48: 53.25295516 | J48: 50.44888889 | K48: 49.43991111
A49: 40 | C49: Oakford | D49: 3095 | E49: 448.22 | F49: 2646.78 | H49: 197.7684097 | J49: 177.0377778 | K49: 173.4970222
A50: 41 | C50: Poughill | D50: 2000 | E50: 198.27 | F50: 1801.73 | H50: 77.00892029 | J50: 80.63777778 | K50: 79.02502222
A51: 42 | C51: Puddington | D51: 850 | E51: 202.32 | F51: 647.68 | H51: 78.98858405 | J51: 88.76 | K51: 86.9848
A52: 43 | C52: Sampford Peverell | D52: 7900 | E52: 840.03 | F52: 7059.97 | H52: 363.8621992 | J52: 499.87 | K52: 489.8726
A53: 44 | C53: Sandford | D53: 10656 | E53: 1265.29 | F53: 9390.71 | H53: 594.4930273 | J53: 503.6088889 | K53: 493.5367111
A54: 45 | C54: Shobrooke | D54: 5000 | E54: 774.17 | F54: 4225.83 | H54: 432.160599 | J54: 200.1144444 | K54: 196.1121556
A55: 46 | C55: Silverton | D55: 32200 | E55: 2067.83 | F55: 30132.17 | H55: 983.1010236 | J55: 782.6733333 | K55: 767.0198667
A56: 47 | C56: Stockleigh English | D56: 0 | E56: 0 | F56: 0 | H56: 1.781697385 | J56: 29.71555556 | K56: 29.12124444
A57: 48 | C57: Stockleigh Pomeroy | D57: 0 | E57: 0 | F57: 0 | H57: 50.28345952 | J57: 59.01555556 | K57: 57.83524444
A58: 49 | C58: Stoodleigh | D58: 4000 | E58: 244.88 | F58: 3755.12 | H58: 94.62792776 | J58: 147.1644444 | K58: 144.2211556
A59: 50 | C59: Templeton | D59: 1262 | E59: 138.82 | F59: 1123.18 | H59: 13.85764632 | J59: 65.88333333 | K59: 64.56566667
A60: 51 | C60: Thelbridge | D60: 800 | E60: 212.46 | F60: 587.54 | H60: 115.2164309 | J60: 135.9022222 | K60: 133.1841778
A61: 52 | C61: Thorverton | D61: 13500 | E61: 846.79 | F61: 12653.21 | H61: 422.0643138 | J61: 377.3466667 | K61: 369.7997333
A62: 53 | C62: Tiverton | D62: 236442 | E62: 34636.02 | F62: 201805.98 | H62: 16480.89877 | J62: 6888.716667 | K62: 6750.942333
A63: 54 | C63: Uffculme | D63: 70000 | E63: 4606.85 | F63: 65393.15 | H63: 2079.834747 | J63: 1060.051111 | K63: 1038.850089
A64: 55 | C64: Uplowman | D64: 2500 | E64: 170.57 | F64: 2329.43 | H64: 70.67399626 | J64: 153.3188889 | K64: 150.2525111
A65: 56 | C65: Upton Hellions | D65: 0 | E65: 0 | F65: 0 | H65: 27.71529265 | J65: 32.1 | K65: 31.458
A66: 57 | C66: Washfield | D66: 1650 | E66: 236.78 | F66: 1413.22 | H66: 109.2774396 | J66: 163.5911111 | K66: 160.3192889
A67: 58 | C67: Washford Pyne | D67: 550 | E67: 76 | F67: 474 | H67: 23.162066 | J67: 42.05222222 | K67: 41.21117778
A68: 59 | C68: Wembworthy | D68: 3000 | E68: 249.27 | F68: 2750.73 | H68: 111.4550697 | J68: 107.1755556 | K68: 105.0320444
A69: 60 | C69: Willand | D69: 32337 | E69: 3439.51 | F69: 28897.49 | H69: 1819.508962 | J69: 1172.423333 | K69: 1148.974867
A70: 61 | C70: Woolfardisworthy | D70: 500 | E70: 171.25 | F70: 328.75 | H70: 61.36957658 | J70: 69.48333333 | K70: 68.09366667
A71: 62 | C71: Zeal Monachorum | D71: 3250 | E71: 377.63 | F71: 2872.37 | H71: 68.10043337 | J71: 164.6711111 | K71: 161.3776889
D74: 1046243 | E74: 98000 | F74: 948243 | G74: =SUM(G10:G71) -> 0 | H74: =SUM(H10:H71) -> 46960 | I74: =SUM(I10:I71) -> 0 | J74: 28445.02333 | K74: 27876.12287 | L74: 0
G78: Control
